bitfinex-derivatives/quotes_ETHF0:USTF0_20260131
["timestamp","ask_amount","ask_price","bid_price","bid_amount"]
[1769861882000,3.56120432,2635.7,2634.8,3.62636501]
[1769861882594,4.72760917,2635.7,2634.7,0.19008]
[1769861882795,3.55805026,2635.6,2634.7,0.19008]
[1769861883297,3.55805026,2635.6,2634.7,3.81644501]
[1769861883504,3.55805026,2635.6,2634.3,3.62636501]
[1769861883703,1.16955891,2635.7,2634.3,3.62636501]
[1769861883704,3.55805026,2635.3,2634.3,3.62636501]
[1769861885304,3.56120432,2635.7,2634.7,3.62636501]
[1769861888201,3.8651598,2635.6,2634.6,0.19009]
[1769861888911,3.8651598,2635.3,2634.3,5.9040879]
[1769861889297,3.8651598,2635.3,2634.4,3.6760879]
[1769861889604,3.8651598,2635.6,2634.6,3.6760879]
[1769861891505,3.8651598,2635.6,2634.5,0.1901]
[1769861893707,3.8651598,2635.6,2634.5,3.8661879]
[1769861895901,3.8651598,2635.6,2634.3,3.6760879]
[1769861896101,3.8651598,2635.4,2634.0,3.6760879]
[1769861896610,3.8651598,2635.4,2633.9,0.19014]
[1769861896611,3.8651598,2635.2,2633.9,0.19014]
[1769861898109,3.8651598,2635.2,2633.9,3.8662279]
[1769861900408,3.8651598,2635.2,2634.2,3.6760879]
[1769861903912,3.8651598,2635.2,2634.1,0.19013]
[1769861904609,3.8651598,2635.2,2633.8,3.6760879]
[1769861904913,3.8651598,2635.2,2633.4,0.19017]
[1769861904914,3.8651598,2634.9,2633.5,3.6760879]
[1769861905115,3.8651598,2634.7,2633.5,3.6760879]
[1769861910410,3.8651598,2634.7,2633.5,3.8662579]
[1769861910713,3.8651598,2635.1,2633.7,3.8662379]
[1769861910902,3.8651598,2634.9,2633.4,3.6760879]
[1769861911108,3.8651598,2634.7,2633.1,3.86984176]
[1769861915023,3.8651598,2634.7,2633.6,3.6760879]
[1769861915319,3.8651598,2634.7,2633.6,3.8662479]
[1769861916120,3.8651598,2635.3,2633.8,3.6760879]
[1769861916514,3.8651598,2635.3,2633.8,5.9040879]
[1769861916714,3.8651598,2635.3,2633.9,3.6760879]
[1769861917214,3.8651598,2635.3,2633.9,3.8662279]
[1769861918316,3.8651598,2635.3,2634.1,3.71186732]
[1769861918717,3.8651598,2635.3,2634.1,3.90199732]
[1769861918917,7.5960333,2635.6,2634.1,3.90199732]
[1769861919926,3.7970333,2635.5,2634.1,3.90199732]
[1769861921721,3.7970333,2635.5,2634.5,3.64006283]
[1769861921927,3.799,2635.6,2634.5,3.83016283]
[1769861922427,0.00315406,2635.7,2634.5,3.83016283]
[1769861922824,3.66515894,2635.6,2634.5,3.83016283]
[1769861923029,3.66515894,2635.6,2634.5,0.1901]
[1769861923228,3.66515894,2635.6,2634.5,3.83016283]
[1769861923529,3.66515894,2635.6,2634.7,3.64006283]
[1769861925531,3.66515894,2635.6,2634.6,0.19009]
[1769861929031,3.66515894,2635.6,2634.1,6.19406283]
[1769861929237,3.66515894,2635.6,2634.2,3.64006283]
[1769861930838,3.66515894,2635.6,2634.2,3.83018283]
[1769861931041,3.66515894,2635.6,2634.5,3.64006283]
[1769861931734,3.66515894,2635.6,2634.7,3.64006283]
[1769861933541,0.00315406,2635.7,2634.7,3.64006283]
[1769861934339,3.668313,2635.7,2634.7,3.64006283]
[1769861941548,3.668313,2635.7,2634.6,0.19009]
[1769861942844,3.668313,2635.7,2634.1,7.43806283]
[1769861943447,3.66515894,2635.5,2634.2,3.64006283]
[1769861944245,3.66515894,2635.5,2634.2,3.83018283]
[1769861944442,3.66515894,2635.5,2634.2,0.19012]
[1769861945750,3.66515894,2635.2,2633.5,3.64006283]
[1769861946052,3.66515894,2635.0,2633.7,3.64006283]
[1769861947447,3.66515894,2635.0,2633.7,3.83021283]
[1769861949850,3.66515894,2635.0,2633.9,3.70119514]
[1769861950657,3.66515894,2635.0,2633.8,0.19015]
[1769861950658,3.64521219,2635.2,2634.1,3.70119514]
[1769861956051,3.64521219,2635.2,2634.3,3.70119514]
[1769861956357,3.64521219,2635.5,2634.4,3.70119514]
[1769861973772,3.64836625,2635.7,2634.4,3.70119514]
[1769861973963,4.5393223,2635.6,2634.4,3.70119514]
[1769861974163,3.64836625,2635.7,2634.7,3.70119514]
[1769861979979,0.00315406,2635.7,2634.7,3.70119514]
[1769861980171,0.00315406,2635.7,2635.0,3.933639]
[1769861980371,0.00315406,2635.7,2635.0,3.93842697]
[1769861983980,3.86362535,2636.1,2635.3,3.933639]
[1769861985086,3.86726287,2636.1,2635.3,3.933639]
[1769861987180,3.86726287,2636.1,2635.1,3.933639]
[1769861987377,3.86362535,2636.0,2635.1,3.933639]
[1769861989992,0.00363752,2636.1,2635.4,3.933639]
[1769861990180,3.86726287,2636.1,2635.0,3.93842697]
[1769861991781,2.25461797,2636.6,2635.0,3.93842697]
[1769861991993,3.86362535,2636.9,2635.9,3.933639]
[1769861992879,3.86362535,2637.3,2636.2,3.933639]
[1769861993085,3.86362535,2637.7,2636.8,3.933639]
[1769861993986,2.49232207,2638.0,2637.1,3.933639]
[1769861994291,3.798,2638.3,2637.3,3.933639]
[1769861994988,3.798,2638.3,2637.4,3.933639]
[1769861994989,0.00378816,2638.3,2637.4,3.933639]
[1769861995488,7.989,2639.0,2637.7,3.933639]
[1769861996184,3.86362535,2638.9,2637.7,3.933639]
[1769861996385,3.86711126,2638.9,2637.7,3.933639]
[1769861997080,0.00348591,2638.9,2638.1,3.933639]
[1769861997277,3.86362535,2639.9,2638.3,3.933639]
[1769861997991,3.86362535,2639.9,2638.5,3.933639]
[1769861998187,0.003203,2639.9,2638.5,3.933639]
[1769861998888,0.003203,2639.9,2638.8,3.933639]
[1769861999094,0.003203,2639.9,2639.0,3.933639]
[1769862000897,3.86362535,2640.9,2639.5,3.933639]
[1769862001391,3.86362535,2640.9,2639.7,3.933639]
[1769862001597,40.8,2641.6,2640.0,3.933639]
[1769862001598,3.86362535,2641.6,2640.0,3.933639]
[1769862001789,3.86810125,2641.6,2640.0,3.93694044]
[1769862001990,3.86810125,2641.6,2640.0,4.12664044]
[1769862002191,3.86810125,2641.6,2640.2,3.933639]
[1769862002697,0.0044759,2641.6,2640.4,4.123309]
[1769862002898,3.86810125,2641.6,2640.4,4.123309]
[1769862003286,3.86810125,2641.6,2640.4,3.933639]
[1769862005094,3.86810125,2641.6,2640.0,0.00330144]
[1769862005300,3.86810125,2641.6,2640.0,3.93694044]
[1769862007289,3.86810125,2641.6,2640.0,0.00330144]
[1769862007595,3.56628653,2641.5,2640.0,0.00330144]
[1769862008499,3.56628653,2641.5,2640.0,3.75584745]
[1769862010395,3.56628653,2641.5,2640.0,0.00330144]
[1769862010998,3.56628653,2641.5,2640.0,3.75584745]
[1769862011202,3.56628653,2641.5,2640.2,3.75254601]
[1769862012601,3.57076243,2641.6,2640.2,3.75254601]
[1769862013202,3.57076243,2641.6,2640.2,3.94223601]
[1769862013403,3.57076243,2641.6,2640.4,3.75254601]
[1769862013601,0.0044759,2641.6,2640.6,3.75254601]
[1769862014509,3.56628653,2642.3,2641.1,3.75254601]
[1769862015408,0.00387892,2642.3,2641.3,3.75254601]
[1769862015899,0.00387892,2642.3,2641.5,3.75254601]
[1769862016107,3.56628653,2642.9,2641.6,3.75254601]
[1769862017200,3.57095312,2642.9,2641.6,3.94213601]
[1769862018306,0.00466659,2642.9,2641.9,3.75254601]
[1769862018509,0.00466659,2642.9,2642.1,3.75254601]
[1769862019003,3.56628653,2644.0,2642.1,3.75254601]
[1769862019402,3.56628653,2644.0,2642.3,3.75254601]
[1769862019807,3.56918715,2644.0,2642.3,3.75254601]
[1769862021004,3.56918715,2644.0,2641.9,0.00386174]
[1769862021005,3.56628653,2643.7,2641.9,3.75640775]
[1769862021206,3.56628653,2643.7,2642.1,3.75254601]
[1769862022213,3.56628653,2643.7,2642.3,3.75254601]
[1769862023406,3.56628653,2643.7,2642.6,0.1895]
[1769862023603,3.56918715,2644.0,2642.6,3.94204601]
[1769862024006,3.56918715,2644.0,2642.6,3.75254601]
[1769862024303,3.56628653,2643.8,2642.0,3.75254601]
[1769862024912,3.56628653,2643.8,2641.9,0.19340174]
[1769862025313,3.56628653,2643.6,2641.9,0.19340174]
[1769862025510,3.56628653,2643.4,2641.9,0.19340174]
[1769862026210,3.56628653,2643.4,2641.9,0.00386174]
[1769862026408,3.56628653,2643.2,2641.9,0.00386174]
[1769862026604,3.56628653,2643.0,2641.9,0.00386174]
[1769862027006,3.56628653,2642.8,2641.2,0.18959]
[1769862027207,3.56628653,2642.6,2641.1,3.75254601]
[1769862027412,3.56628653,2642.4,2641.1,3.75254601]
[1769862027814,3.56628653,2642.4,2640.7,7.54154601]
[1769862028013,3.56628653,2642.4,2640.7,7.54558004]
[1769862028213,4.50084664,2642.3,2640.7,7.54558004]
[1769862028518,3.56628653,2642.2,2640.7,7.54558004]
[1769862029015,3.56628653,2642.2,2640.8,3.75254601]
[1769862029314,3.56628653,2642.0,2640.8,3.75254601]
[1769862029518,3.56938147,2642.0,2640.8,3.75254601]
[1769862031325,3.56628653,2641.8,2640.8,3.75254601]
[1769862031911,3.56628653,2641.8,2640.7,0.00403403]
[1769862031912,11.46028653,2641.8,2640.7,0.00403403]
[1769862032119,11.46028653,2641.8,2640.5,0.00675699]
[1769862032120,3.56628653,2641.6,2640.5,0.00675699]
[1769862032417,3.56628653,2641.4,2640.5,0.00675699]
[1769862033022,3.56628653,2641.4,2640.5,0.01136999]
[1769862034620,3.56628653,2641.4,2640.5,3.763916]
[1769862034827,3.56628653,2641.7,2640.5,3.763916]
[1769862035023,3.56628653,2641.7,2640.5,0.01136999]
[1769862035424,3.56628653,2641.5,2640.5,0.01136999]
[1769862037426,3.80059974,2641.3,2639.9,3.61214493]
[1769862037722,3.80059974,2641.1,2639.9,3.61214493]
[1769862038517,3.80059974,2641.1,2639.9,3.61555591]
[1769862040732,3.80059974,2641.1,2639.9,0.00341098]
[1769862040931,3.79206423,2640.9,2639.6,3.69666102]
[1769862041232,3.79206423,2640.7,2639.4,0.18972]
[1769862041836,3.79206423,2640.7,2639.4,3.88638102]
[1769862042130,3.79206423,2640.7,2639.4,3.88919748]
[1769862046327,3.79206423,2640.7,2639.5,0.18972]
[1769862046525,3.79206423,2641.0,2639.6,3.69666102]
[1769862052137,3.79206423,2641.0,2639.7,0.1897]
[1769862052342,3.79206423,2641.0,2639.8,3.88635102]
[1769862053341,3.79206423,2641.3,2639.8,3.88635102]
[1769862055243,3.79206423,2641.1,2639.8,3.88635102]
[1769862057548,3.79206423,2640.9,2639.8,0.18969]
[1769862058340,3.79206423,2640.7,2639.5,3.69666102]
[1769862058939,3.79206423,2640.7,2639.4,0.00281646]
[1769862059245,3.79206423,2640.5,2639.4,0.00281646]
[1769862062242,3.79206423,2640.3,2639.4,0.00281646]
[1769862062654,3.79206423,2640.5,2639.4,3.69947748]
[1769862062849,3.79206423,2640.3,2639.4,3.69947748]
[1769862065347,3.79206423,2640.3,2639.4,0.00281646]
[1769862065756,3.79206423,2640.1,2638.9,3.79]
[1769862065957,3.79206423,2639.9,2638.9,3.79]
[1769862066851,3.79540367,2639.9,2638.9,3.79342745]
[1769862067052,3.89610016,2639.7,2638.9,0.00342745]
[1769862067359,3.89610016,2639.5,2638.4,2.617]
[1769862067553,3.89610016,2639.5,2638.4,6.49964685]
[1769862067758,3.89610016,2639.5,2638.5,3.88264685]
[1769862068155,3.89610016,2639.5,2638.5,3.88701392]
[1769862070260,3.89610016,2639.5,2638.5,0.00436707]
[1769862070452,3.89610016,2639.5,2638.5,3.88701392]
[1769862072062,3.89610016,2639.5,2638.5,0.00436707]
[1769862074252,3.89610016,2639.5,2638.3,0.1898]
[1769862074452,3.89610016,2639.3,2638.0,3.88264685]
[1769862074659,3.89610016,2639.3,2637.9,3.791]
[1769862075059,3.89610016,2639.2,2637.9,3.791]
[1769862075359,3.89610016,2639.2,2637.9,3.79562002]
[1769862076155,3.89610016,2639.3,2638.1,0.18982]
[1769862076463,3.89610016,2639.3,2638.2,3.88264685]
[1769862076660,3.89610016,2639.3,2638.1,0.18982]
[1769862077460,3.89610016,2639.3,2637.9,3.79562002]
[1769862077765,3.89610016,2639.1,2637.9,7.67826687]
[1769862081663,3.89610016,2639.1,2637.9,3.88726687]
[1769862082769,3.89610016,2638.9,2637.5,0.00673208]
[1769862083068,3.89610016,2638.7,2637.5,0.00673208]
[1769862083262,3.89610016,2638.5,2637.5,0.00673208]
[1769862083770,3.89610016,2638.5,2637.5,0.01135921]
[1769862084763,3.89610016,2638.3,2636.6,3.88264685]
[1769862085765,3.89610016,2638.3,2636.6,3.88622882]
[1769862089774,3.89610016,2638.1,2636.6,3.88622882]
[1769862090166,4.08594016,2637.9,2636.6,0.00358197]
[1769862090370,3.89610016,2637.7,2636.6,3.88622882]
[1769862090872,3.89610016,2637.7,2636.6,0.00358197]
[1769862091072,3.89610016,2637.7,2636.0,3.88264685]
[1769862091680,4.08595016,2637.7,2635.7,3.88264685]
[1769862091885,3.89610016,2637.4,2635.7,3.88264685]
[1769862092083,3.89610016,2637.2,2635.7,3.88746378]
[1769862092283,3.89610016,2637.0,2635.7,3.88746378]
[1769862094287,3.89610016,2637.6,2636.1,3.88264685]
[1769862095682,3.89610016,2637.6,2636.1,4.07260685]
[1769862096489,3.255,2637.8,2636.3,3.88264685]
[1769862096692,3.90048579,2637.9,2636.3,3.88264685]
[1769862098291,3.90048579,2637.9,2636.5,3.65802355]
[1769862101086,3.90048579,2637.9,2636.5,3.84795355]
[1769862103493,3.90048579,2637.9,2636.7,3.71163543]
[1769862106993,3.90048579,2637.9,2636.1,3.71163543]
[1769862107295,3.8794161,2637.6,2636.1,3.71163543]
[1769862107495,3.8794161,2637.4,2636.1,3.71163543]
[1769862108694,3.8794161,2637.7,2636.5,3.71163543]
[1769862108897,3.8794161,2637.7,2636.5,3.90156543]
[1769862109082,3.8794161,2637.7,2636.7,3.71163543]
[1769862109694,0.00438563,2637.9,2636.7,3.71163543]
[1769862110091,3.88380173,2637.9,2636.7,3.71163543]
[1769862111191,3.8794161,2637.7,2636.7,3.71163543]
[1769862111391,3.8794161,2637.7,2636.6,0.18993]
[1769862111894,3.8794161,2637.7,2636.6,3.90156543]
[1769862114999,2.24211637,2637.9,2636.6,3.90156543]
[1769862115194,10.64726639,2637.9,2636.6,3.90156543]
[1769862115496,4.52573392,2637.8,2636.6,3.90156543]
[1769862115698,3.88380173,2637.9,2636.6,3.90156543]
[1769862118098,3.88380173,2637.9,2636.8,3.71163543]
[1769862118300,3.88380173,2637.9,2636.0,7.18380385]
[1769862118301,0.00438563,2637.9,2637.1,3.71163543]
[1769862119899,3.88380173,2637.9,2636.9,0.18991]
[1769862120399,3.8794161,2637.6,2636.4,3.71163543]
[1769862120603,3.8794161,2637.3,2636.4,3.90157543]
[1769862121104,3.8794161,2637.3,2636.4,3.71163543]
[1769862121295,3.8794161,2637.3,2636.1,3.71163543]
[1769862122001,3.8794161,2637.1,2636.1,3.71163543]
[1769862122401,3.8794161,2637.1,2636.0,3.795]
[1769862122707,3.8794161,2637.1,2635.8,3.90161543]
[1769862122904,3.8794161,2636.9,2635.8,3.90161543]
[1769862124305,3.8794161,2636.9,2635.7,0.00481693]
[1769862124501,3.8794161,2636.7,2635.7,0.00481693]
[1769862126810,3.8794161,2636.7,2635.7,3.76815939]
[1769862128814,3.79000166,2637.0,2635.7,3.76815939]
[1769862130518,3.79000166,2637.5,2636.2,3.95329246]
[1769862133017,3.79000166,2637.8,2636.6,3.76334246]
[1769862143815,3.79000166,2637.8,2636.5,0.18993]
[1769862144220,3.79000166,2637.8,2636.5,3.95327246]
[1769862145831,0.00438563,2637.9,2637.0,3.76334246]
[1769862146726,0.00438563,2637.9,2637.0,3.95323246]
[1769862146919,3.79000166,2638.4,2637.0,3.95323246]
[1769862147222,2.23773074,2638.7,2637.4,3.76334246]
[1769862147223,3.79000166,2638.7,2637.4,3.76334246]
[1769862147425,2.226,2638.9,2637.4,3.76334246]
[1769862147924,6.0202828,2638.9,2637.4,3.76334246]
[1769862148325,3.79000166,2638.8,2637.4,3.76334246]
[1769862148918,0.00428114,2638.9,2637.8,3.76334246]
[1769862149216,0.00428114,2638.9,2637.8,3.95669298]
[1769862150826,3.7942828,2638.9,2637.8,3.95669298]
[1769862151328,0.00428114,2638.9,2637.8,3.95669298]
[1769862151823,3.7942828,2638.9,2637.8,3.95669298]
[1769862152833,0.00673208,2639.0,2638.2,3.76334246]
[1769862153129,3.79000166,2640.0,2638.4,3.76334246]
[1769862153328,3.79000166,2640.0,2638.4,3.95313246]
[1769862154131,3.79345447,2640.0,2638.4,3.95313246]
[1769862156433,3.79345447,2640.0,2638.8,3.76334246]
[1769862157634,3.79345447,2640.0,2638.5,3.92629507]
[1769862168731,0.00345281,2640.0,2638.7,3.84769367]
[1769862168937,3.64770672,2640.0,2638.7,3.84769367]
[1769862171045,3.64770672,2640.0,2638.5,3.84769367]
[1769862171340,3.64425391,2639.8,2638.5,3.84769367]
[1769862172442,3.64425391,2639.6,2638.5,3.84769367]
[1769862172637,3.64425391,2639.9,2638.5,3.84769367]
[1769862174343,3.64425391,2639.7,2638.5,3.84769367]
[1769862176644,4.54189504,2639.6,2638.5,3.84769367]
[1769862176941,3.64425391,2639.7,2638.5,3.84769367]
[1769862177142,4.54203233,2639.6,2638.5,3.84769367]
[1769862177342,3.64425391,2639.7,2638.5,3.84769367]
[1769862177544,6.68939545,2640.0,2638.0,3.793]
[1769862177545,29.539883,2640.0,2639.0,1.5467609]
[1769862177734,3.92841136,2640.6,2639.3,0.18973]
[1769862178640,3.93217049,2640.6,2639.3,0.18973]
[1769862179538,3.93217049,2640.6,2639.3,0.27732508]
[1769862180248,3.88649339,2641.2,2639.8,0.08383595]
[1769862181042,0.00673553,2641.4,2640.1,0.08383595]
[1769862181348,0.0095914,2641.4,2640.2,0.08383595]
[1769862181536,0.0095914,2641.4,2640.4,0.10592975]
[1769862181740,0.0095914,2641.4,2640.5,0.10592975]
[1769862182339,3.88503789,2641.4,2640.4,0.18965]
[1769862182747,3.87544649,2641.7,2640.6,0.10592975]
[1769862183246,3.87544649,2641.7,2640.5,0.18964]
[1769862183835,3.87843641,2641.7,2640.5,0.18964]
[1769862185543,3.87843641,2641.7,2640.5,0.28166218]
[1769862186551,3.88240027,2642.1,2641.1,0.08903226]
[1769862187441,3.88727547,2642.1,2641.1,0.08903226]
[1769862187648,3.88727547,2642.1,2641.1,0.27863226]
[1769862188248,3.89846322,2642.1,2641.2,0.25586602]
[1769862190249,3.89846322,2642.1,2641.2,0.1896]
[1769862190447,3.9027993,2642.0,2641.2,0.1896]
[1769862190856,3.9027993,2641.6,2641.2,0.1896]
[1769862191146,3.7888,2641.9,2641.2,0.1896]
[1769862191551,3.7888,2641.8,2641.2,0.1896]
[1769862191742,7.70286178,2641.8,2641.2,0.1896]
[1769862191942,7.70286178,2641.7,2641.2,0.1896]
[1769862192144,3.91406178,2641.7,2641.0,2.223]
[1769862192547,0.0048752,2642.1,2640.2,3.792]
[1769862192548,3.91406178,2641.5,2640.2,3.792]
[1769862192847,3.91406178,2641.0,2640.1,0.00481164]
[1769862193348,3.91406178,2640.6,2640.1,0.00481164]
[1769862193745,7.71552103,2640.5,2640.1,0.00481164]
[1769862193946,3.92672103,2640.5,2640.0,0.18968]
[1769862194146,7.71552103,2640.5,2640.0,0.18968]
[1769862194748,3.92672103,2640.4,2640.0,0.18968]
[1769862194953,3.92672103,2640.4,2639.6,2.2483185]
[1769862195848,3.92672103,2640.2,2639.6,0.00450998]
[1769862196046,0.00488986,2640.2,2639.6,0.00450998]
[1769862197549,3.92672103,2641.6,2639.6,0.00450998]
[1769862197743,3.92672103,2641.2,2639.6,0.00450998]
[1769862198151,3.92672103,2641.1,2639.6,0.00450998]
[1769862198543,3.92975267,2641.1,2639.6,0.00450998]
[1769862198944,3.92672103,2641.0,2639.6,0.00450998]
[1769862199140,3.92672103,2641.0,2640.0,0.18968]
[1769862199544,0.00303164,2641.1,2640.0,0.18968]
[1769862199545,3.92672103,2640.7,2640.0,0.18968]
[1769862200045,7.71552103,2640.7,2640.0,0.18968]
[1769862200748,3.92672103,2640.6,2640.0,0.18968]
[1769862201447,0.00303164,2641.1,2639.6,0.00450998]
[1769862201647,0.6970543,2642.7,2640.9,0.18961]
[1769862201648,3.92672103,2642.0,2640.9,0.18961]
[1769862202147,3.92672103,2641.8,2640.9,0.18961]
[1769862202347,3.92672103,2641.6,2640.9,0.18961]
[1769862202547,3.93143453,2641.6,2640.9,0.18961]
[1769862202944,3.7888,2641.5,2640.9,0.18961]
[1769862203448,3.92672103,2641.3,2640.2,0.18966]
[1769862203650,3.93143453,2641.6,2640.6,0.18964]
[1769862203943,3.93143453,2641.6,2640.7,0.18963]
[1769862204344,3.92672103,2641.1,2640.7,0.17565297]
[1769862204553,3.92672103,2640.7,2640.2,3.79]
[1769862204944,3.7888,2640.7,2640.2,3.79]
[1769862205747,3.92672103,2641.0,2640.2,3.79]
[1769862205948,7.32814931,2640.8,2640.2,3.79]
[1769862206155,3.92289931,2640.8,2640.2,3.79]
[1769862206453,3.92289931,2641.0,2640.2,3.79]
[1769862207352,2.99812657,2640.9,2640.2,3.79]
[1769862209455,3.90951983,2640.7,2639.6,0.00450998]
[1769862209662,3.90951983,2640.2,2639.6,0.00450998]
[1769862209851,3.90951983,2640.2,2639.4,0.18972]
[1769862210159,3.90951983,2639.8,2639.4,0.18972]
[1769862210358,4.46194264,2641.4,2639.4,0.18972]
[1769862210359,3.90951983,2640.6,2639.6,0.18971]
[1769862210869,3.90951983,2640.2,2639.6,0.19239017]
[1769862211256,3.90951983,2640.0,2639.6,0.19239017]
[1769862211451,6.5265564,2640.0,2639.6,0.19239017]
[1769862212157,2.61703657,2639.9,2639.6,0.19239017]
[1769862212860,3.86349581,2639.9,2639.6,0.19239017]
[1769862213061,1.73833657,2639.8,2639.6,0.19239017]
[1769862213261,0.83909657,2639.8,2639.6,0.19239017]
[1769862213462,3.86349581,2639.9,2639.1,0.0344024]
[1769862214161,3.86349581,2639.9,2639.6,0.18971]
[1769862214355,3.86349581,2639.9,2639.0,0.00673553]
[1769862215361,3.86349581,2639.9,2639.0,0.01077006]
[1769862215562,3.86349581,2639.9,2639.0,0.20052006]
[1769862216561,3.86349581,2639.9,2638.6,3.79]
[1769862217165,3.86349581,2639.9,2638.6,3.97978]
[1769862217357,3.86349581,2639.9,2639.1,0.18974]
[1769862217658,3.86349581,2639.9,2639.1,0.19307704]
[1769862223670,3.86349581,2639.9,2638.6,3.79]
[1769862224871,3.86349581,2639.9,2638.6,3.79293243]
[1769862225171,3.86349581,2639.9,2638.6,0.00293243]
[1769862226062,3.86349581,2639.9,2638.4,0.1898]
[1769862226462,3.81511088,2639.8,2637.6,2.223]
[1769862226660,3.81511088,2639.6,2637.9,0.18983]
[1769862226869,3.81511088,2639.6,2638.0,0.18983]
[1769862227065,3.81511088,2639.5,2638.0,0.19416699]
[1769862228965,3.81511088,2639.5,2637.5,3.791]
[1769862229165,3.81511088,2639.5,2638.0,0.18983]
[1769862229973,3.81511088,2639.5,2638.0,0.19303059]
[1769862230268,3.81511088,2639.5,2638.0,0.98621284]
[1769862231167,3.81511088,2639.5,2638.3,0.1898]
[1769862231967,3.81511088,2639.5,2638.4,0.1898]
[1769862241677,3.81511088,2639.5,2638.3,0.96375495]
[1769862241886,3.81511088,2639.5,2638.7,0.18977]
[1769862243687,0.00365017,2639.6,2639.0,0.18975]
[1769862243890,0.00365017,2639.6,2638.8,0.97990461]
[1769862244479,0.00365017,2639.6,2639.1,0.18974]
[1769862244680,3.81511088,2639.8,2639.1,0.18974]
[1769862245788,3.8187684,2639.8,2639.1,0.18974]
[1769862246181,3.8187684,2639.8,2638.8,0.97990461]
[1769862246382,3.0520284,2639.8,2638.8,0.97990461]
[1769862246583,0.00673839,2641.0,2639.2,1.720392]
[1769862246793,0.00673839,2641.0,2639.8,0.18969]
[1769862247478,0.00977253,2641.0,2639.8,0.18969]
[1769862248490,3.78289167,2640.9,2639.8,0.18969]
[1769862249088,3.78289167,2640.9,2639.8,1.67721574]
[1769862249490,3.78289167,2640.9,2639.8,0.18969]
[1769862249887,3.78289167,2640.9,2639.9,0.18969]
[1769862250194,3.78289167,2640.9,2640.0,0.18968]
[1769862252894,3.78289167,2640.9,2639.0,4.03100253]
[1769862253195,3.78289167,2640.8,2639.1,1.81139394]
[1769862253388,3.78289167,2640.8,2639.5,0.18972]
[1769862253793,3.78289167,2640.8,2639.5,1.86678771]
[1769862254096,3.78289167,2640.8,2639.5,0.19394377]
[1769862258490,3.78289167,2640.8,2639.0,2.224]
[1769862259295,3.78289167,2640.8,2639.5,0.18972]
[1769862259496,3.78289167,2640.8,2639.5,0.19287159]
[1769862261296,3.78289167,2640.8,2638.7,1.69732579]
[1769862261497,3.78289167,2640.8,2639.1,0.18975]
[1769862262305,3.78289167,2640.8,2639.1,0.19345455]
[1769862262706,3.78289167,2640.6,2639.1,0.19345455]
[1769862263991,3.78289167,2640.4,2638.4,2.41279]
[1769862264191,3.78289167,2640.2,2638.4,2.41279]
[1769862264593,3.78289167,2640.2,2638.4,0.18979]
[1769862264794,3.78289167,2640.0,2638.4,0.18979]
[1769862265000,3.78289167,2639.8,2638.5,2.32744754]
[1769862265199,3.78289167,2639.8,2638.5,2.13765754]
[1769862265505,3.78289167,2639.8,2638.8,2.32742754]
[1769862266003,3.78289167,2639.8,2638.8,0.18977]
[1769862276313,3.78289167,2639.8,2638.4,0.00396308]
[1769862277019,3.78289167,2639.8,2638.8,0.18976]
[1769862277509,3.78289167,2639.8,2638.4,0.00396308]
[1769862278909,3.78289167,2639.8,2638.4,0.00030556]
[1769862279109,3.55552792,2639.6,2638.4,0.00030556]
[1769862279313,3.55552792,2639.4,2638.4,0.00030556]
[1769862280114,7.34752792,2639.4,2638.4,0.00030556]
[1769862280412,3.70006832,2639.3,2638.4,0.00030556]
[1769862288816,3.70006832,2639.1,2638.4,0.00030556]
[1769862289017,3.70419475,2639.1,2638.4,0.00030556]
[1769862300016,3.70419475,2639.1,2638.4,0.19010556]
[1769862300221,3.70419475,2639.1,2638.4,2.73287735]
[1769862301030,3.70419475,2639.1,2638.5,0.18979]
[1769862301322,3.70006832,2640.1,2638.8,0.18976]
[1769862301924,3.70006832,2639.9,2638.4,0.00030556]
[1769862302327,3.70469141,2639.9,2638.4,0.00030556]
[1769862303023,3.70006832,2639.7,2638.4,0.00030556]
[1769862305727,3.70006832,2639.5,2638.4,0.00030556]
[1769862305933,3.70006832,2639.3,2638.4,0.00030556]
[1769862306136,3.70006832,2639.3,2638.5,0.18979]
[1769862314242,3.70006832,2639.3,2638.4,0.00030556]
[1769862314439,3.70006832,2639.3,2638.5,0.18979]
[1769862314640,3.70006832,2639.3,2638.4,0.00030556]
[1769862315135,3.70006832,2639.3,2638.5,0.18979]
[1769862315339,3.70006832,2639.3,2638.4,0.00030556]
[1769862315544,3.70006832,2639.3,2637.8,0.18983]
[1769862315545,3.88120466,2639.1,2637.8,0.18983]
[1769862315735,3.88120466,2638.9,2637.8,0.18983]
[1769862316435,3.88120466,2638.9,2637.8,3.22588011]
[1769862316840,3.88120466,2638.9,2637.9,3.22270945]
[1769862318043,3.88120466,2638.9,2638.0,3.29662589]
[1769862321348,3.88120466,2638.9,2638.1,0.18982]
[1769862323752,3.88120466,2638.9,2638.2,3.19831247]
[1769862324155,3.88120466,2638.9,2638.3,0.1898]
[1769862333558,3.88120466,2638.9,2637.8,2.67117066]
[1769862333964,3.88120466,2638.9,2638.3,0.1898]
[1769862337970,5.04366998,2638.9,2637.8,0.00317066]
[1769862338263,3.56030413,2638.8,2637.8,0.00317066]
[1769862338962,3.56030413,2638.8,2637.8,1.16563598]
[1769862339170,3.56030413,2638.8,2638.2,0.18981]
[1769862341065,3.56030413,2638.8,2637.8,0.00317066]
[1769862342171,3.56030413,2638.8,2638.2,0.18981]
[1769862343569,3.81258075,2639.5,2638.3,4.46142976]
[1769862344171,3.81258075,2639.5,2638.3,1.16246532]
[1769862345167,3.81258075,2639.5,2638.5,0.18979]
[1769862349174,3.81258075,2639.4,2638.5,0.18979]
[1769862350576,4.97504607,2639.4,2638.5,0.18979]
[1769862351276,3.81258075,2639.3,2638.5,0.18979]
[1769862351776,3.81258075,2639.3,2637.9,0.18983]
[1769862353174,1.16246532,2639.1,2637.9,0.18983]
[1769862353477,3.81258075,2639.0,2637.9,0.18983]
[1769862355578,3.81258075,2639.0,2637.8,2.22717066]
[1769862355579,3.81258075,2639.0,2638.0,3.48704796]
[1769862355880,3.81258075,2639.0,2638.1,4.64951328]
[1769862356069,3.81258075,2639.0,2638.2,0.18981]
[1769862356276,3.81258075,2639.0,2638.3,0.1898]
[1769862362987,3.81258075,2639.0,2637.8,5.40972807]
[1769862362988,3.81258075,2638.8,2637.8,2.22717066]
[1769862363281,3.81258075,2638.8,2637.8,0.00317066]
[1769862365578,3.81258075,2638.8,2637.9,0.18983]
[1769862367289,3.81258075,2638.8,2638.0,0.18983]
[1769862367583,2.26272412,2639.7,2638.3,0.1898]
[1769862367788,5.48479228,2639.7,2638.3,3.81487125]
[1769862367980,4.32232696,2639.6,2638.3,3.81487125]
[1769862368180,1.16246532,2639.7,2638.3,3.81487125]
[1769862368484,4.32246614,2639.6,2638.3,3.81487125]
[1769862368685,4.32246614,2639.5,2638.3,3.81487125]